bitfinex-derivatives/quotes_BNBF0:USTF0_20250406
["timestamp","ask_amount","ask_price","bid_price","bid_amount"]
[1743936145996,0.708,588.35,587.92,0.28610358]
[1743936146191,0.708,588.35,587.91,0.28610358]
[1743936146391,0.708,588.35,587.92,0.28610358]
[1743936146593,0.708,588.35,587.91,0.28610358]
[1743936146797,0.708,588.35,587.92,0.28610358]
[1743936146996,0.708,588.35,587.91,0.28610358]
[1743936147196,0.708,588.35,587.92,0.28610358]
[1743936147397,0.708,588.35,587.91,0.28610358]
[1743936147598,0.708,588.35,587.92,0.28610496]
[1743936147796,0.708,588.35,587.9,0.28610496]
[1743936147996,0.708,588.35,587.91,0.28610496]
[1743936148196,0.708,588.35,587.9,0.28610496]
[1743936149194,0.708,588.35,587.89,1.26919122]
[1743936149396,0.708,588.35,587.9,0.28610354]
[1743936149592,0.708,588.35,587.9,1.55529476]
[1743936149797,0.708,588.35,587.91,0.28610354]
[1743936150399,0.8,588.36,587.91,0.28610354]
[1743936152596,0.8,588.36,587.92,1.26919122]
[1743936152798,0.8,588.36,587.93,0.28610354]
[1743936153002,0.832,588.35,587.93,0.28610354]
[1743936155707,0.832,588.35,587.93,1.55529476]
[1743936156006,0.832,588.35,587.94,0.28610354]
[1743936158208,0.832,588.35,587.9,0.28610354]
[1743936158409,0.832,588.35,587.95,0.28610354]
[1743936158606,0.832,588.35,587.91,0.28610354]
[1743936158911,0.832,588.35,587.92,0.28610354]
[1743936159111,0.832,588.35,587.89,1.26919122]
[1743936159311,0.832,588.35,587.9,0.28609785]
[1743936160208,0.609,588.34,587.9,1.55528907]
[1743936160406,0.609,588.34,587.91,0.28609785]
[1743936162508,0.609,588.34,587.92,0.28610352]
[1743936162908,0.609,588.34,587.93,0.28610352]
[1743936163109,0.609,588.34,587.9,0.28610352]
[1743936163607,0.609,588.34,587.91,0.28610542]
[1743936163810,0.609,588.34,587.9,0.28610542]
[1743936164011,0.609,588.34,587.91,0.28610542]
[1743936164212,0.609,588.34,587.9,0.28610542]
[1743936166808,0.625,588.33,587.9,0.28610542]
[1743936169015,0.625,588.33,587.97,1.26919122]
[1743936169413,0.625,588.33,587.98,0.28610542]
[1743936171511,0.625,588.33,587.97,1.26919122]
[1743936171714,0.625,588.33,587.98,0.28607921]
[1743936171913,0.625,588.33,588.01,1.26919122]
[1743936172113,0.625,588.33,588.02,0.28607921]
[1743936174017,0.625,588.33,588.01,1.26919122]
[1743936174212,0.625,588.33,588.02,0.28607289]
[1743936174812,0.625,588.33,587.96,0.28607289]
[1743936177013,0.625,588.33,587.92,1.26919122]
[1743936177014,0.625,588.33,587.93,0.28607289]
[1743936177215,0.625,588.33,587.94,0.28607322]
[1743936177516,0.625,588.33,587.95,0.28607322]
[1743936177721,0.625,588.33,587.93,0.28607322]
[1743936179019,0.625,588.33,587.94,0.28607834]
[1743936179222,0.625,588.33,587.93,0.28607834]
[1743936179418,0.625,588.33,587.94,0.28607834]
[1743936179722,0.625,588.33,587.9,0.28607834]
[1743936179920,0.625,588.33,587.91,0.28607834]
[1743936180120,0.625,588.33,587.92,0.28607834]
[1743936180321,0.625,588.33,587.9,0.28607834]
[1743936180622,0.625,588.33,587.91,0.28607834]
[1743936180825,0.625,588.33,587.92,0.28607834]
[1743936181030,0.625,588.33,587.9,0.28607834]
[1743936181225,1.349,588.33,587.91,0.28607834]
[1743936181522,1.349,588.33,587.92,0.28607834]
[1743936181723,1.349,588.33,587.93,0.28611515]
[1743936181918,1.349,588.33,587.9,0.28611515]
[1743936182123,1.349,588.33,587.91,0.28611515]
[1743936182423,1.349,588.33,587.92,0.28611757]
[1743936182618,1.349,588.33,587.85,0.28611757]
[1743936183625,1.349,588.33,587.78,0.28611757]
[1743936185026,1.349,588.33,587.77,1.26919122]
[1743936185228,1.349,588.33,587.78,0.28611593]
[1743936188029,1.349,588.33,587.83,1.26919122]
[1743936188228,1.349,588.33,587.84,0.28611593]
[1743936189930,1.349,588.33,587.82,0.28611593]
[1743936190136,1.349,588.33,587.81,1.26919122]
[1743936190434,1.349,588.33,587.82,0.28612338]
[1743936191636,1.349,588.33,587.81,1.26919122]
[1743936191837,1.349,588.33,587.88,1.26919122]
[1743936192037,1.349,588.33,587.89,0.2861227]
[1743936192436,1.349,588.33,587.88,1.26919122]
[1743936192633,1.349,588.33,587.9,0.28612337]
[1743936192839,1.349,588.33,587.91,0.28612337]
[1743936193035,1.349,588.33,587.89,0.28612337]
[1743936193234,1.349,588.33,587.9,0.28612337]
[1743936193434,1.349,588.33,587.88,1.26919122]
[1743936193435,1.349,588.33,587.89,0.28612337]
[1743936193632,1.349,588.33,587.9,0.28612901]
[1743936193938,1.349,588.33,587.91,0.28612901]
[1743936194232,1.349,588.33,587.92,0.28612901]
[1743936194441,1.349,588.33,587.89,0.28612901]
[1743936195232,1.349,588.33,587.9,0.28613099]
[1743936195437,1.349,588.33,587.84,0.28613099]
[1743936195638,1.349,588.33,587.85,0.28613099]
[1743936195937,1.349,588.33,587.86,0.28613099]
[1743936196238,1.349,588.33,587.87,0.28613099]
[1743936196439,1.349,588.33,587.84,0.28613099]
[1743936196840,1.349,588.33,587.85,0.28612701]
[1743936197138,1.349,588.33,587.86,0.28612701]
[1743936197339,1.349,588.33,587.79,0.28612701]
[1743936197540,1.349,588.33,587.78,1.26919122]
[1743936197541,1.349,588.33,587.87,0.28612701]
[1743936197734,1.349,588.33,587.88,0.28612701]
[1743936197933,1.349,588.33,587.79,0.28612701]
[1743936198138,1.349,588.33,587.8,0.28612701]
[1743936198333,1.349,588.33,587.79,0.28612701]
[1743936198533,1.349,588.33,587.78,1.26919122]
[1743936198740,1.349,588.33,587.79,0.28612635]
[1743936199641,1.349,588.33,587.79,1.55531757]
[1743936199842,1.349,588.33,587.8,0.28612635]
[1743936201741,1.349,588.33,587.81,0.28612635]
[1743936201943,1.349,588.33,587.82,0.2861423]
[1743936202141,1.349,588.33,587.75,0.2861423]
[1743936202343,1.349,588.33,587.83,0.2861423]
[1743936202543,1.349,588.33,587.84,0.2861423]
[1743936202738,1.349,588.33,587.75,0.2861423]
[1743936202938,1.349,588.33,587.85,0.2861423]
[1743936203237,1.349,588.33,587.86,0.2861423]
[1743936203443,1.349,588.33,587.75,0.2861423]
[1743936203639,1.349,588.33,587.74,1.26919122]
[1743936203838,1.349,588.33,587.75,0.28614282]
[1743936204338,1.349,588.33,587.75,1.55533404]
[1743936204542,1.349,588.33,587.76,0.28614282]
[1743936205341,1.349,588.33,587.77,0.28614114]
[1743936205542,1.349,588.33,587.76,0.28614114]
[1743936205742,1.349,588.33,587.77,0.28614114]
[1743936205941,1.349,588.33,587.78,0.28614114]
[1743936206142,1.349,588.33,587.76,0.28614114]
[1743936206341,1.349,588.33,587.77,0.28614114]
[1743936206544,1.349,588.33,587.76,0.28614114]
[1743936206737,1.349,588.33,587.77,0.28614114]
[1743936206941,1.349,588.33,587.78,0.28614477]
[1743936207141,1.349,588.33,587.76,0.28614477]
[1743936207542,1.349,588.33,587.78,1.26919122]
[1743936207736,1.349,588.33,587.79,0.28614477]
[1743936209345,1.349,588.33,587.76,0.28614477]
[1743936209548,1.349,588.33,587.77,0.28614477]
[1743936209749,1.349,588.33,587.76,0.28614477]
[1743936209949,1.349,588.33,587.77,0.28614477]
[1743936210149,1.349,588.33,587.75,1.26919122]
[1743936210150,1.349,588.33,587.76,0.28614477]
[1743936210352,1.349,588.33,587.77,0.28616046]
[1743936210548,1.349,588.33,587.76,0.28616046]
[1743936211146,1.349,588.33,587.72,0.28616046]
[1743936211347,1.349,588.33,587.73,0.28616046]
[1743936211545,1.349,588.33,587.74,0.28616046]
[1743936211743,1.349,588.33,587.72,0.28616046]
[1743936211950,1.349,588.33,587.73,0.28615397]
[1743936212351,1.349,588.33,587.74,0.28615397]
[1743936212549,1.349,588.33,587.72,0.28615397]
[1743936212752,1.349,588.33,587.73,0.28615397]
[1743936212952,1.349,588.33,587.72,0.28615397]
[1743936213354,1.349,588.33,587.73,1.26919122]
[1743936213648,1.349,588.33,587.74,0.28615397]
[1743936215756,1.349,588.33,587.75,1.26919122]
[1743936215954,1.349,588.33,587.76,0.28615397]
[1743936216855,1.349,588.33,587.77,0.28615581]
[1743936217056,1.349,588.33,587.76,0.28615581]
[1743936218256,1.349,588.33,587.82,1.26919122]
[1743936218654,1.349,588.33,587.83,0.28615408]
[1743936219858,1.349,588.33,587.84,0.28615428]
[1743936220058,1.349,588.33,587.83,0.28615428]
[1743936221757,1.349,588.33,587.82,1.26919122]
[1743936221958,1.349,588.33,587.74,1.26919122]
[1743936221959,1.349,588.33,587.83,0.28616022]
[1743936222158,1.349,588.33,587.82,0.28616022]
[1743936224160,1.349,588.33,587.76,0.28616022]
[1743936225163,1.349,588.33,587.75,1.26919122]
[1743936225459,1.349,588.33,587.76,0.28615827]
[1743936227560,1.349,588.33,587.77,0.28615827]
[1743936227864,1.349,588.33,587.71,0.28615827]
[1743936228064,1.349,588.33,587.72,0.28615827]
[1743936228259,1.349,588.33,587.71,0.28615827]
[1743936228465,1.349,588.33,587.72,0.28615827]
[1743936228765,1.349,588.33,587.73,0.28615827]
[1743936228964,1.349,588.33,587.71,0.28615827]
[1743936229167,1.349,588.33,587.72,0.28615827]
[1743936229360,1.349,588.33,587.67,0.34032705]
[1743936229361,1.349,588.33,587.71,1.55534949]
[1743936229559,1.349,588.33,587.72,0.28615827]
[1743936231767,1.349,588.33,587.71,1.26919122]
[1743936231967,1.349,588.33,587.67,0.34032705]
[1743936231968,1.349,588.33,587.73,0.28617156]
[1743936232166,1.349,588.33,587.74,0.28617156]
[1743936232363,1.349,588.33,587.68,0.28617156]
[1743936234572,0.58043162,588.32,587.68,0.28617156]
[1743936234764,0.58043162,588.31,587.68,0.28617156]
[1743936234971,0.58043162,588.3,587.68,0.28617156]
[1743936235165,0.58043162,588.29,587.68,0.28617156]
[1743936235362,0.58043162,588.28,587.68,0.28617156]
[1743936235668,0.58043162,588.27,587.59,0.28617156]
[1743936235867,0.58043162,588.26,587.6,0.28617156]
[1743936236070,0.58043162,588.25,587.59,0.28617156]
[1743936236265,0.58043162,588.24,587.6,0.28617156]
[1743936236463,0.58006767,588.23,587.59,0.28617156]
[1743936236667,0.58006767,588.22,587.6,0.28617156]
[1743936236866,0.29588314,588.32,587.59,0.28617156]
[1743936237064,0.58014241,588.31,587.61,0.28617156]
[1743936237264,0.58014241,588.3,587.62,0.28617156]
[1743936237470,0.58014241,588.29,587.54,0.28617156]
[1743936237667,0.58014241,588.28,587.54,0.28617156]
[1743936237868,0.58014241,589.01,587.54,0.28617156]
[1743936238169,0.845,588.27,587.54,0.28617156]
[1743936238965,0.64,588.26,587.54,0.28617156]
[1743936239972,0.64,588.26,587.48,0.28617156]
[1743936240165,0.64,588.26,587.49,0.28617156]
[1743936240365,0.64,588.26,587.48,0.28617156]
[1743936242070,0.64,588.26,587.48,1.55536278]
[1743936242270,0.64,588.26,587.49,0.28617156]
[1743936244170,0.64,588.26,587.4,0.28617156]
[1743936244875,0.64,588.26,587.41,0.29593347]
[1743936245174,0.64,588.26,587.42,0.28617156]
[1743936246371,0.64,588.26,587.41,0.29593347]
[1743936246676,0.64,588.26,587.42,0.28622897]
[1743936246875,0.64,588.26,587.41,0.28622897]
[1743936247776,0.64,588.26,587.41,0.58216118]
[1743936248075,0.64,588.26,587.42,0.28622897]
[1743936249679,0.64,588.26,587.37,0.28622897]
[1743936249880,0.64,588.26,587.41,0.29592717]
[1743936250077,0.64,588.26,587.42,0.28622981]
[1743936251378,0.64,588.26,587.41,0.63640486]
[1743936251581,0.64,588.26,587.42,0.28622142]
[1743936252179,0.64,588.26,587.41,0.63640486]
[1743936252385,0.64,588.26,587.42,0.28622236]
[1743936253381,0.64,588.26,587.43,0.28622202]
[1743936253585,0.64,588.26,587.42,0.28622202]
[1743936253883,0.64,588.26,587.43,0.28622202]
[1743936254884,0.64,588.26,587.42,1.60966311]
[1743936255082,0.64,588.26,587.43,0.28623199]
[1743936256289,0.64,588.26,587.48,1.26919122]
[1743936256489,0.64,588.26,587.49,0.28623199]
[1743936258783,0.64,588.26,587.48,0.28623199]
[1743936258989,0.64,588.26,587.49,0.28623199]
[1743936259188,0.64,588.26,587.47,1.26919122]
[1743936259189,0.64,588.26,587.48,0.28623199]
[1743936259992,0.64,588.26,587.47,1.26919122]
[1743936260194,0.64,588.26,587.48,0.28624573]
[1743936261593,0.64,588.26,587.47,1.26919122]
[1743936261792,0.64,588.26,587.49,0.28624907]
[1743936261989,1.21976934,588.26,587.5,0.28624907]
[1743936262192,1.21976934,588.26,587.48,0.28624907]
[1743936262390,0.57976934,588.25,587.49,0.2862666]
[1743936262593,0.57976934,588.25,587.43,0.2862666]
[1743936262895,0.8757091,588.25,587.44,0.2862666]
[1743936263095,0.29593976,588.25,587.43,0.2862666]
[1743936263293,0.29593976,588.25,587.45,0.2862666]
[1743936263494,0.29593976,588.25,587.42,0.34047189]
[1743936263495,0.29593976,588.25,587.46,0.2862499]
[1743936263794,0.29593976,588.25,587.47,0.2862499]
[1743936264195,0.29593976,588.25,587.42,0.34047189]
[1743936264196,0.29593976,588.25,587.43,0.2862499]
[1743936264395,0.64,588.26,587.44,0.2862499]
[1743936264593,0.64,588.26,587.43,0.2862499]
[1743936264795,0.64,588.26,587.44,0.2862499]
[1743936264996,0.64,588.26,587.43,0.2862499]
[1743936265195,0.64,588.26,587.44,0.2862499]
[1743936265396,0.64,588.26,587.43,0.2862499]
[1743936265791,0.29593976,588.25,587.43,0.2862499]
[1743936266397,0.692,588.24,587.43,0.2862499]
[1743936267892,0.57964875,588.23,587.43,0.2862499]
[1743936268095,0.57964875,588.22,587.43,0.2862499]
[1743936268292,0.57964875,588.21,587.43,0.2862499]
[1743936268493,0.692,588.24,587.43,0.2862499]
[1743936268494,0.57964875,588.23,587.43,0.2862499]
[1743936268693,0.57964875,588.22,587.43,0.2862499]
[1743936268896,0.57964875,588.21,587.43,0.2862499]
[1743936269093,0.57964875,588.22,587.43,0.2862499]
[1743936269297,0.57964875,588.21,587.43,0.2862499]
[1743936269598,0.57964875,588.22,587.43,0.2862499]
[1743936269894,0.57964875,588.21,587.43,0.2862499]
[1743936270097,0.57964875,588.22,587.43,0.2862499]
[1743936270600,0.57958448,588.22,587.43,0.2862499]
[1743936270792,0.57958448,588.23,587.43,0.2862499]
[1743936270999,0.57958448,588.22,587.43,0.2862499]
[1743936271199,0.57958448,588.23,587.43,0.2862499]
[1743936271399,0.57958448,588.22,587.43,0.2862499]
[1743936271700,0.87553179,588.23,587.42,1.60966311]
[1743936271904,0.57958448,588.22,587.44,0.28628029]
[1743936272095,0.57958448,588.22,587.45,0.28628029]
[1743936272299,0.29594731,588.23,587.43,0.28628029]
[1743936273597,0.692,588.24,587.43,0.28628029]
[1743936273798,1.27158448,588.24,587.43,0.28628029]
[1743936274094,0.692,588.24,587.43,0.28628029]
[1743936274298,1.27158448,588.24,587.43,0.28628029]
[1743936274500,0.692,588.24,587.43,0.28628029]
[1743936274701,0.29594731,588.23,587.43,0.28628029]
[1743936275098,0.29594731,588.23,587.42,0.34047189]
[1743936275303,0.29594731,588.23,587.43,0.28627254]
[1743936276399,0.692,588.24,587.43,0.28627254]
[1743936277805,0.29594731,588.23,587.43,0.28627254]
[1743936279504,0.692,588.24,587.43,0.28627254]
[1743936279706,0.692,588.24,587.51,1.26919122]
[1743936280005,0.692,588.24,587.52,0.28624875]
[1743936280404,0.692,588.24,587.53,0.28625974]
[1743936280605,0.692,588.24,587.52,0.28625974]
[1743936280808,0.692,588.24,587.53,0.28625974]
[1743936281007,0.667,588.23,587.52,0.28625974]
[1743936281208,0.667,588.23,587.53,0.28625974]
[1743936281407,0.667,588.23,587.52,0.28625974]
[1743936281604,0.667,588.23,587.53,0.28625974]
[1743936281805,0.667,588.23,587.52,0.28625974]
[1743936282006,0.667,588.23,587.53,0.28626575]
[1743936282205,0.667,588.23,587.52,0.28626575]
[1743936282405,0.667,588.23,587.53,0.28626575]
[1743936282603,0.667,588.23,587.52,0.28626575]
[1743936282806,0.667,588.23,587.53,1.26919122]
[1743936283008,0.667,588.23,587.54,0.28626575]
[1743936283206,1.24656884,588.23,587.54,0.28626575]
[1743936283407,0.57956884,588.22,587.54,0.28626575]
[1743936283808,0.87583197,588.22,587.54,0.28626575]
[1743936284411,0.29594227,588.22,587.54,0.28626575]
[1743936285009,0.29594227,588.22,587.43,0.28626575]
[1743936285209,0.29594227,588.22,587.44,0.28626575]
[1743936285409,0.667,588.23,587.43,0.28626575]
[1743936287010,0.667,588.23,587.5,1.26919122]
[1743936287011,0.532,588.22,587.5,1.26919122]
[1743936287207,0.532,588.22,587.51,0.28624902]
[1743936287407,1.1118897,588.22,587.51,0.28624902]
[1743936287611,1.1118897,588.22,587.5,1.26919122]
[1743936287811,1.1118897,588.22,587.52,0.28624968]
[1743936288111,1.1118897,588.22,587.53,0.28624968]
[1743936288312,0.532,588.22,587.54,0.28624968]
[1743936288613,0.532,588.22,587.55,0.28624968]
[1743936288811,0.532,588.22,587.56,0.28624935]
[1743936289108,0.532,588.22,587.57,0.28624935]
[1743936289313,0.58033089,588.21,587.51,0.28624935]
[1743936289512,0.532,588.22,587.52,0.28624935]
[1743936289812,0.5804287,588.21,587.53,0.28624935]
[1743936290008,0.532,588.22,587.51,1.26919122]
[1743936290009,0.532,588.22,587.52,0.28624935]
[1743936290212,0.532,588.22,587.53,0.28624935]
[1743936290413,0.58051667,588.21,587.52,0.28624935]
[1743936290609,0.532,588.22,587.53,0.28624935]
[1743936290812,0.5805127,588.21,587.52,0.28624935]
[1743936291012,0.532,588.22,587.52,0.28624935]
[1743936291310,0.5805128,588.21,587.52,0.28624935]
[1743936291514,0.532,588.22,587.53,1.26919122]
[1743936291714,0.58061338,588.21,587.54,0.28624935]
[1743936291917,0.532,588.22,587.53,1.26919122]
[1743936292211,0.58061186,588.21,587.54,0.28625106]
[1743936292407,0.58072207,588.2,587.54,0.28625106]
[1743936292611,0.532,588.22,587.54,0.28625106]
[1743936292813,0.58071882,588.21,587.54,0.28625106]
[1743936293009,0.58071882,588.2,587.54,0.28625106]
[1743936293215,0.532,588.22,587.54,0.28625106]
[1743936293415,0.58084186,588.21,587.54,0.28625106]
[1743936293610,0.58084186,588.2,587.59,1.26919122]
[1743936293813,0.532,588.22,587.6,0.28625106]
[1743936294014,0.5808407,588.21,587.6,0.28625106]
[1743936294210,0.58084046,588.2,587.6,0.28625106]
[1743936294410,0.58098061,588.19,587.6,0.28625106]
[1743936294610,0.532,588.22,587.6,0.28625106]
[1743936294810,0.5809821,588.21,587.6,0.28625106]
[1743936295011,0.5809823,588.2,587.6,0.28625106]
[1743936295214,0.5809823,588.19,587.6,0.28625106]
[1743936295414,0.5809823,588.19,587.54,1.26919122]
[1743936295415,0.532,588.22,587.55,0.28625106]
[1743936295710,0.58098916,588.21,587.56,0.28625106]
[1743936295913,0.58098916,588.2,587.55,0.28625106]
[1743936296110,0.532,588.22,587.56,0.28625106]
[1743936296311,0.5810134,588.21,587.55,0.28625106]
[1743936296515,0.5810134,588.2,587.56,0.28625106]
[1743936296716,0.532,588.22,587.55,0.28625106]
[1743936296917,0.58100803,588.21,587.55,0.28625106]
[1743936297118,0.532,588.22,587.55,0.28625106]
[1743936297417,0.58102029,588.21,587.55,0.28625106]
[1743936297714,0.532,588.22,587.57,1.26919122]
[1743936297917,0.5809987,588.21,587.58,0.28625106]
[1743936298115,0.5809987,588.2,587.58,0.28625106]
[1743936298315,0.532,588.22,587.58,0.28625106]
[1743936300620,0.532,588.22,587.59,0.28625106]
[1743936300919,0.532,588.22,587.6,0.28625106]
[1743936301119,0.532,588.22,587.49,0.28625106]
[1743936301516,0.532,588.22,587.5,0.28624482]
[1743936301722,0.532,588.22,587.49,0.28624482]
[1743936301922,0.532,588.22,587.51,0.28624482]
[1743936302121,0.532,588.22,587.52,0.28624482]
[1743936302323,0.532,588.22,587.49,0.28624482]
[1743936302522,0.532,588.22,587.5,0.28624482]
[1743936302723,0.532,588.22,587.48,1.26919122]
[1743936302917,0.532,588.22,587.49,1.55543134]
[1743936303119,0.532,588.22,587.5,0.28624012]
[1743936305423,0.58106215,588.21,587.53,1.26919122]
[1743936305617,0.58106215,588.2,587.54,0.28624012]
[1743936305822,0.58106215,588.19,587.54,0.28624012]
[1743936306020,0.532,588.22,587.54,0.28624012]
[1743936306222,0.58106632,588.21,587.54,0.28624012]
[1743936306422,0.58106632,588.2,587.54,0.28624012]
[1743936306621,0.58106632,588.19,587.54,0.28624012]
[1743936306924,0.58106632,588.18,587.54,0.28624012]
[1743936307121,0.58112947,588.17,587.54,0.28624012]
[1743936307424,0.58112947,588.16,587.54,0.28624012]
[1743936307721,0.532,588.22,587.6,1.26919122]
[1743936307923,0.58115514,588.21,587.61,0.28624012]
[1743936308123,0.58115514,588.2,587.61,0.28624012]
[1743936308324,0.58115514,588.19,587.6,1.26919122]
[1743936308524,0.58115514,588.18,587.61,0.28626122]
[1743936308722,0.58115514,588.17,587.61,0.28626122]
[1743936308922,0.532,588.22,587.61,0.28626122]
[1743936309128,0.581164,588.21,587.61,0.28626122]
[1743936309327,0.581164,588.2,587.61,0.28626122]
[1743936309523,0.581164,588.19,587.61,0.28626122]
[1743936309725,0.581164,588.18,587.61,0.28626122]
[1743936309925,0.581164,588.17,587.61,0.28626122]
[1743936310221,0.532,588.22,587.61,0.28626122]
[1743936310423,0.58122619,588.21,587.61,0.28626122]
[1743936310622,0.58122619,588.2,587.61,0.28626122]
[1743936310823,0.58122619,588.19,587.51,0.28626122]
[1743936311030,0.58122619,588.18,587.51,0.28626122]
[1743936311227,0.58122619,588.17,587.51,0.28626122]
[1743936311428,0.532,588.22,587.51,0.28626122]
[1743936311723,0.58126377,588.21,587.52,0.28625229]
[1743936311922,0.58129132,588.2,587.51,0.28625229]
[1743936312122,0.532,588.22,587.51,0.28625229]
[1743936312329,0.58131946,588.21,587.51,0.28625229]
[1743936312530,0.58131946,588.2,587.51,0.28625229]
[1743936312826,0.532,588.22,587.51,0.28625229]
[1743936313029,0.58134822,588.21,587.51,0.28625229]
[1743936313223,0.58134822,588.2,587.51,0.28625229]
[1743936313427,0.667,588.23,587.52,0.28623699]
[1743936313824,0.667,588.23,587.53,1.55542821]
[1743936314026,0.667,588.23,587.54,0.28623699]
[1743936316429,0.583,588.22,587.54,0.28623699]
[1743936317232,0.583,588.22,587.5,0.28623699]
[1743936317427,0.583,588.22,587.51,0.28623699]
[1743936317627,0.583,588.22,587.5,0.28623699]
[1743936318727,0.583,588.22,587.42,0.34047189]
[1743936318728,0.583,588.22,587.43,0.28623699]
[1743936318927,0.583,588.22,587.44,0.28623699]
[1743936319128,0.583,588.22,587.43,0.28623699]
[1743936319434,0.583,588.22,587.44,0.28623699]
[1743936319635,0.583,588.22,587.43,0.28623699]
[1743936319835,0.583,588.22,587.44,0.29591585]
[1743936320036,0.583,588.22,587.45,0.28623699]
[1743936320436,0.58145325,588.21,587.45,0.28623699]
[1743936320738,0.58145325,588.2,587.45,0.28623699]
[1743936320942,0.58145325,588.19,587.45,0.28623699]
[1743936321141,0.583,588.22,587.45,0.28623699]
[1743936321341,0.58139385,588.21,587.45,0.28623699]
[1743936321542,0.58139385,588.2,587.45,0.28623699]
[1743936321837,0.58139385,588.19,587.45,0.28623699]
[1743936322042,0.583,588.22,587.45,0.28623699]
[1743936322242,0.58138441,588.21,587.45,0.28623699]
[1743936322442,0.58138441,588.2,587.45,0.28623699]
[1743936322639,0.583,588.22,587.45,0.28623699]
[1743936322843,0.58139199,588.21,587.45,0.28623699]
[1743936323045,0.58139199,588.2,587.45,0.28623699]
[1743936323245,0.58136826,588.19,587.45,0.28623699]
[1743936323436,0.583,588.22,587.45,0.28623699]
[1743936323637,0.58137028,588.21,587.46,0.28623649]
[1743936323840,0.58137028,588.2,587.45,0.28623649]
[1743936324041,0.58137028,588.19,587.46,0.28623649]
[1743936324238,0.58136166,588.18,587.45,0.28623649]
[1743936324439,0.583,588.22,587.45,0.28623649]
[1743936324640,0.58136097,588.21,587.45,1.26919122]
[1743936324944,0.58136097,588.2,587.46,0.28623649]
[1743936325145,0.58136097,588.19,587.46,0.28623649]
[1743936325339,0.58136097,588.18,587.46,0.28623649]
[1743936325543,0.583,588.22,587.46,0.28623649]
[1743936325739,0.58135309,588.21,587.46,0.28623649]
[1743936325944,0.583,588.22,587.46,0.28623649]
[1743936325945,0.58135309,588.2,587.46,0.28623649]
[1743936326145,0.58135309,588.19,587.46,0.28623649]
[1743936326341,0.58135309,588.18,587.46,0.28623649]
[1743936326641,0.583,588.22,587.46,0.28623649]
[1743936326843,0.58134738,588.21,587.46,0.28623649]
[1743936327045,0.58134738,588.2,587.46,0.28623649]
[1743936327344,0.58134738,588.19,587.46,0.28623649]
[1743936327544,0.58134738,588.18,587.46,0.28623649]
[1743936327745,0.583,588.22,587.46,0.28623649]
[1743936327944,0.58134576,588.21,587.46,0.28623649]
[1743936328246,0.58137507,588.2,587.6,1.26919122]
[1743936328439,0.58137507,588.19,587.61,0.28623649]
[1743936328643,0.583,588.22,587.61,0.28623649]
[1743936331147,0.583,588.22,587.7,1.26919122]
[1743936333549,0.58132016,588.21,587.7,1.26919122]
[1743936333850,0.58132016,588.2,587.5,1.26919122]
[1743936334051,0.58132016,588.19,587.51,0.28627154]
[1743936334350,0.58132016,588.18,587.51,0.28627154]
[1743936334649,0.58132016,588.17,587.51,0.28627154]
[1743936334850,0.58132016,588.19,587.51,0.28627154]
[1743936335052,0.58132016,588.18,587.51,0.28627154]
[1743936335250,0.724,588.2,587.51,0.28627154]
[1743936335649,0.58131231,588.19,587.51,0.28627154]
[1743936335849,0.58131231,588.18,587.51,0.28627154]
[1743936336050,0.58131231,588.17,587.51,0.28627154]
[1743936336350,0.58131231,588.16,587.51,0.28627154]
[1743936336546,0.58131231,588.15,587.51,0.28627154]
[1743936336851,0.58131231,588.14,587.52,0.28627154]
[1743936337047,0.58131231,588.13,587.43,0.28627154]
[1743936337249,1.276,588.2,587.44,0.28627154]
[1743936337446,1.276,588.2,587.42,1.90559783]
[1743936337447,0.58120157,588.19,587.43,0.28627154]
[1743936337650,0.58120157,588.18,587.44,0.28627154]
[1743936337951,0.58120157,588.17,587.45,0.28627154]
[1743936338152,0.58120157,588.16,587.43,0.28627154]
[1743936338349,0.58120157,588.15,587.46,0.28627154]
[1743936338554,1.276,588.2,587.47,0.28627154]
[1743936338753,0.58113494,588.19,587.43,0.28627154]
[1743936338954,0.58113494,588.18,587.43,0.28627154]